[Event "Early-Titled-Tuesday-Blitz-March-26-2024"]
[Site "Chess.com"]
[Date "2024.03.26"]
[Round "5"]
[White "valeriocarnicelli"]
[Black "Zhani-Z"]
[Result "0-1"]
[WhiteElo "2544"]
[BlackElo "2260"]
[TimeControl "180+1"]
[EndTime "8:51:11 PDT"]
[Termination "Zhani-Z won by resignation"]

1. b3 {[%clk 0:03:00.9]} 1... Nf6 {[%clk 0:02:58.4]} 2. Bb2 {[%clk 0:03:01.8]}
2... g6 {[%clk 0:02:55.6]} 3. Bxf6 {[%clk 0:03:01.6]} 3... exf6 {[%clk
0:02:55.2]} 4. c4 {[%clk 0:03:02.5]} 4... f5 {[%clk 0:02:53.9]} 5. Nc3 {[%clk
0:03:02.6]} 5... Bg7 {[%clk 0:02:53.1]} 6. g3 {[%clk 0:03:03.2]} 6... O-O {[%clk
0:02:51.2]} 7. Bg2 {[%clk 0:03:03.7]} 7... d6 {[%clk 0:02:51.5]} 8. h4 {[%clk
0:03:04]} 8... Nd7 {[%clk 0:02:50]} 9. h5 {[%clk 0:03:03.8]} 9... Nf6 {[%clk
0:02:50.3]} 10. h6 {[%clk 0:02:58.6]} 10... Bh8 {[%clk 0:02:49.9]} 11. e3 {[%clk
0:02:58.2]} 11... c6 {[%clk 0:02:36.4]} 12. Nge2 {[%clk 0:02:57.9]} 12... Ng4
{[%clk 0:02:33.6]} 13. Nf4 {[%clk 0:02:54.3]} 13... Qg5 {[%clk 0:02:28.1]} 14.
d4 {[%clk 0:02:49]} 14... Nxh6 {[%clk 0:02:25.7]} 15. Qe2 {[%clk 0:02:48.5]}
15... Ng4 {[%clk 0:02:25.3]} 16. O-O-O {[%clk 0:02:48.7]} 16... Bd7 {[%clk
0:02:24.7]} 17. Rh4 {[%clk 0:02:39.9]} 17... Rae8 {[%clk 0:02:15]} 18. Rdh1
{[%clk 0:02:37.8]} 18... Bxd4 {[%clk 0:02:10.1]} 19. Qd2 {[%clk 0:02:27]} 19...
Bxc3 {[%clk 0:02:05.2]} 20. Qxc3 {[%clk 0:02:27.9]} 20... Qf6 {[%clk 0:02:05.7]}
21. Qxf6 {[%clk 0:02:17.1]} 21... Nxf6 {[%clk 0:02:05.9]} 22. Rd1 {[%clk
0:02:16]} 22... g5 {[%clk 0:02:06.3]} 23. Rh6 {[%clk 0:02:16.2]} 23... Kg7
{[%clk 0:02:06.7]} 24. Rxf6 {[%clk 0:02:15.8]} 24... Kxf6 {[%clk 0:02:07.1]} 25.
Nh5+ {[%clk 0:02:15.4]} 25... Ke7 {[%clk 0:02:06.9]} 26. Bh3 {[%clk 0:02:14.5]}
26... Rd8 {[%clk 0:02:06.1]} 27. f4 {[%clk 0:02:08.4]} 27... f6 {[%clk
0:02:01.5]} 28. Ng7 {[%clk 0:02:04.8]} 28... g4 {[%clk 0:02:00.7]} 29. Bg2
{[%clk 0:02:04.4]} 29... h5 {[%clk 0:01:56.6]} 30. e4 {[%clk 0:02:02.1]} 30...
fxe4 {[%clk 0:01:53.6]} 31. f5 {[%clk 0:02:02]} 31... Rg8 {[%clk 0:01:39.7]} 32.
Nxh5 {[%clk 0:02:01.5]} 32... Bxf5 {[%clk 0:01:40]} 33. Rf1 {[%clk 0:02:01.5]}
33... Rg5 {[%clk 0:01:37.9]} 34. Nf4 {[%clk 0:02:01.1]} 34... Rh8 {[%clk
0:01:36.9]} 35. Re1 {[%clk 0:01:59.7]} 35... Rh2 {[%clk 0:01:37]} 36. Bxe4
{[%clk 0:01:58]} 36... Bxe4 {[%clk 0:01:37.2]} 37. Rxe4+ {[%clk 0:01:58.9]}
37... Kf7 {[%clk 0:01:37.7]} 38. Kb1 {[%clk 0:01:54.7]} 38... Re5 {[%clk
0:01:37.2]} 0-1

[Event "Early-Titled-Tuesday-Blitz-March-26-2024"]
[Site "Chess.com"]
[Date "2024.03.26"]
[Round "5"]
[White "SirStrateg"]
[Black "Manukyan_Artak"]
[Result "1-0"]
[WhiteElo "2624"]
[BlackElo "2462"]
[TimeControl "180+1"]
[EndTime "8:52:02 PDT"]
[Termination "SirStrateg won by resignation"]

1. d4 {[%clk 0:03:00.9]} 1... d5 {[%clk 0:02:59.5]} 2. Bf4 {[%clk 0:03:01.3]}
2... Nf6 {[%clk 0:02:57.3]} 3. e3 {[%clk 0:03:01.9]} 3... Bg4 {[%clk 0:02:56.4]}
4. Nf3 {[%clk 0:03:01.7]} 4... e6 {[%clk 0:02:50.8]} 5. Nbd2 {[%clk 0:03:02.1]}
5... Bd6 {[%clk 0:02:50.2]} 6. c3 {[%clk 0:03:00.7]} 6... O-O {[%clk 0:02:48.5]}
7. Qb3 {[%clk 0:03:00.9]} 7... Bxf4 {[%clk 0:02:48.2]} 8. exf4 {[%clk
0:02:58.7]} 8... Bxf3 {[%clk 0:02:41.9]} 9. Nxf3 {[%clk 0:02:59]} 9... b6 {[%clk
0:02:37]} 10. Ne5 {[%clk 0:02:58]} 10... Nfd7 {[%clk 0:02:36.1]} 11. Bd3 {[%clk
0:02:53.7]} 11... c5 {[%clk 0:02:30.1]} 12. Qc2 {[%clk 0:02:53.2]} 12... f5
{[%clk 0:02:22]} 13. dxc5 {[%clk 0:02:50.5]} 13... Nxc5 {[%clk 0:02:19.2]} 14.
O-O {[%clk 0:02:48.6]} 14... Nxd3 {[%clk 0:02:15.7]} 15. Qxd3 {[%clk 0:02:44.8]}
15... Qd6 {[%clk 0:02:15.1]} 16. Rfe1 {[%clk 0:02:40.9]} 16... Nc6 {[%clk
0:02:13.9]} 17. Nxc6 {[%clk 0:02:37.1]} 17... Qxc6 {[%clk 0:02:13.4]} 18. Re5
{[%clk 0:02:37.4]} 18... Rf6 {[%clk 0:02:09]} 19. Rae1 {[%clk 0:02:37.5]} 19...
Rd8 {[%clk 0:01:58.6]} 20. g3 {[%clk 0:02:29.1]} 20... h5 {[%clk 0:01:52.9]} 21.
R1e3 {[%clk 0:02:18.9]} 21... Kf7 {[%clk 0:01:45.7]} 22. Qe2 {[%clk 0:02:16.2]}
22... g6 {[%clk 0:01:44.4]} 23. Qa6 {[%clk 0:02:11]} 23... Rd7 {[%clk
0:01:41.4]} 24. Rd3 {[%clk 0:02:11.6]} 24... Qb7 {[%clk 0:01:36.6]} 25. Qa3
{[%clk 0:02:10.9]} 25... Qc7 {[%clk 0:01:30]} 26. Rd4 {[%clk 0:02:09.6]} 26...
Qc5 {[%clk 0:01:28.2]} 27. Qa6 {[%clk 0:02:05.9]} 27... Rc7 {[%clk 0:01:15.3]}
28. a4 {[%clk 0:02:04.5]} 28... Qa5 {[%clk 0:01:09]} 29. Qe2 {[%clk 0:01:55.1]}
29... Qc5 {[%clk 0:01:03.3]} 30. Kg2 {[%clk 0:01:55]} 30... Rc8 {[%clk
0:01:00.2]} 31. h3 {[%clk 0:01:52.4]} 31... a5 {[%clk 0:00:56.3]} 32. f3 {[%clk
0:01:49.6]} 32... Rh8 {[%clk 0:00:47.4]} 33. g4 {[%clk 0:01:49]} 33... hxg4
{[%clk 0:00:47.1]} 34. fxg4 {[%clk 0:01:49.8]} 34... Qc8 {[%clk 0:00:31.9]} 35.
g5 {[%clk 0:01:48.5]} 1-0

[Event "Early-Titled-Tuesday-Blitz-March-26-2024"]
[Site "Chess.com"]
[Date "2024.03.26"]
[Round "5"]
[White "Zavgorodniy_Sergiy"]
[Black "ActorXu"]
[Result "0-1"]
[WhiteElo "2630"]
[BlackElo "2857"]
[TimeControl "180+1"]
[EndTime "8:52:05 PDT"]
[Termination "ActorXu won by checkmate"]

1. d4 {[%clk 0:03:00.9]} 1... Nf6 {[%clk 0:02:58.2]} 2. c4 {[%clk 0:03:01.1]}
2... e6 {[%clk 0:02:57.3]} 3. Nf3 {[%clk 0:03:01.6]} 3... d5 {[%clk 0:02:57.8]}
4. e3 {[%clk 0:03:01.8]} 4... b6 {[%clk 0:02:57.2]} 5. Nbd2 {[%clk 0:03:01.5]}
5... Bb7 {[%clk 0:02:57.6]} 6. Bd3 {[%clk 0:03:01.8]} 6... Nbd7 {[%clk
0:02:56.8]} 7. O-O {[%clk 0:03:02]} 7... Bd6 {[%clk 0:02:53.5]} 8. Qe2 {[%clk
0:03:02.1]} 8... Ne4 {[%clk 0:02:52.9]} 9. b3 {[%clk 0:03:01.9]} 9... O-O {[%clk
0:02:40]} 10. Bb2 {[%clk 0:03:02.1]} 10... f5 {[%clk 0:02:30.6]} 11. cxd5 {[%clk
0:03:01.7]} 11... exd5 {[%clk 0:02:29.4]} 12. Ne5 {[%clk 0:03:01.9]} 12... Qe7
{[%clk 0:02:20.8]} 13. f4 {[%clk 0:03:01.4]} 13... Ndf6 {[%clk 0:02:18.8]} 14.
Ndf3 {[%clk 0:03:01.1]} 14... c5 {[%clk 0:02:17.8]} 15. Rac1 {[%clk 0:02:57]}
15... Rac8 {[%clk 0:02:17.1]} 16. Ba6 {[%clk 0:02:47.8]} 16... Bxa6 {[%clk
0:02:09.7]} 17. Qxa6 {[%clk 0:02:48.7]} 17... Bxe5 {[%clk 0:02:06.1]} 18. Nxe5
{[%clk 0:02:44]} 18... Ng4 {[%clk 0:02:02.9]} 19. Nxg4 {[%clk 0:02:38]} 19...
fxg4 {[%clk 0:02:03.4]} 20. dxc5 {[%clk 0:02:37.6]} 20... bxc5 {[%clk
0:01:54.8]} 21. Rfd1 {[%clk 0:02:29.6]} 21... g3 {[%clk 0:01:45.5]} 22. hxg3
{[%clk 0:02:21.5]} 22... Nxg3 {[%clk 0:01:44.3]} 23. Be5 {[%clk 0:02:17.4]}
23... Qh4 {[%clk 0:01:38.3]} 24. Qe6+ {[%clk 0:02:01.8]} 24... Kh8 {[%clk
0:01:37.4]} 25. Re1 {[%clk 0:01:23.8]} 25... Qh1+ {[%clk 0:01:25.3]} 26. Kf2
{[%clk 0:01:24]} 26... Ne4+ {[%clk 0:01:25.8]} 27. Kf3 {[%clk 0:01:23.4]} 27...
Qh4 {[%clk 0:01:14.6]} 28. Qxd5 {[%clk 0:01:11.4]} 28... Qf2+ {[%clk 0:01:10.2]}
29. Kg4 {[%clk 0:00:57]} 29... Qg3+ {[%clk 0:01:10]} 30. Kh5 {[%clk 0:00:55.8]}
30... Rf5# {[%clk 0:01:09.9]} 0-1

[Event "Early-Titled-Tuesday-Blitz-March-26-2024"]
[Site "Chess.com"]
[Date "2024.03.26"]
[Round "5"]
[White "ZenBull"]
[Black "KarstenHansch"]
[Result "1/2-1/2"]
[WhiteElo "2307"]
[BlackElo "2490"]
[TimeControl "180+1"]
[EndTime "8:52:05 PDT"]
[Termination "Game drawn by agreement"]

1. c4 {[%clk 0:03:00.9]} 1... Nf6 {[%clk 0:02:59.7]} 2. Nc3 {[%clk 0:03:01]}
2... g6 {[%clk 0:03:00.3]} 3. e3 {[%clk 0:03:01]} 3... Bg7 {[%clk 0:03:00.8]} 4.
d4 {[%clk 0:03:00.7]} 4... O-O {[%clk 0:03:01.5]} 5. Bd3 {[%clk 0:03:00.4]} 5...
c5 {[%clk 0:03:01.6]} 6. Nge2 {[%clk 0:03:00.2]} 6... cxd4 {[%clk 0:03:02]} 7.
Nxd4 {[%clk 0:02:59.5]} 7... Nc6 {[%clk 0:03:01.8]} 8. Nxc6 {[%clk 0:02:59.4]}
8... bxc6 {[%clk 0:03:01.3]} 9. O-O {[%clk 0:02:59.4]} 9... d5 {[%clk
0:03:01.1]} 10. cxd5 {[%clk 0:02:59.6]} 10... cxd5 {[%clk 0:03:02]} 11. Rb1
{[%clk 0:02:52.4]} 11... Bg4 {[%clk 0:02:59.8]} 12. Be2 {[%clk 0:02:52]} 12...
Bf5 {[%clk 0:02:59.3]} 13. Bd3 {[%clk 0:02:52.1]} 13... Bg4 {[%clk 0:02:57.8]}
14. Be2 {[%clk 0:02:52.2]} 14... Bf5 {[%clk 0:02:58.1]} 15. Bd3 {[%clk
0:02:52.4]} 15... Bxd3 {[%clk 0:02:58.4]} 16. Qxd3 {[%clk 0:02:51.9]} 16... Qa5
{[%clk 0:02:59.1]} 17. Rd1 {[%clk 0:02:51.1]} 17... Rfd8 {[%clk 0:02:58.5]} 18.
a3 {[%clk 0:02:50.2]} 18... Rab8 {[%clk 0:02:54.4]} 19. Bd2 {[%clk 0:02:47.8]}
19... Qb6 {[%clk 0:02:51.7]} 20. b4 {[%clk 0:02:42.3]} 20... d4 {[%clk
0:02:48.2]} 21. exd4 {[%clk 0:02:39.8]} 21... Rxd4 {[%clk 0:02:47]} 22. Qe2
{[%clk 0:02:38.5]} 22... Qc6 {[%clk 0:02:33]} 23. Be1 {[%clk 0:02:20.7]} 23...
Rg4 {[%clk 0:02:28.5]} 24. f3 {[%clk 0:02:11.9]} 24... Rc4 {[%clk 0:02:28]} 25.
b5 {[%clk 0:01:39.6]} 25... Qc7 {[%clk 0:02:13.3]} 26. Nd5 {[%clk 0:01:34.2]}
26... Nxd5 {[%clk 0:02:09.9]} 27. Rxd5 {[%clk 0:01:32.8]} 27... e6 {[%clk
0:02:05.5]} 28. Rdd1 {[%clk 0:01:28.7]} 28... Rc2 {[%clk 0:02:05]} 29. Rd2
{[%clk 0:01:25.9]} 29... Rc1 {[%clk 0:02:03.4]} 30. Rxc1 {[%clk 0:01:10.8]}
30... Qxc1 {[%clk 0:02:04.3]} 31. Qd1 {[%clk 0:01:07.2]} 31... Qxd1 {[%clk
0:02:00.2]} 32. Rxd1 {[%clk 0:01:07.2]} 32... Bb2 {[%clk 0:01:52.6]} 33. a4
{[%clk 0:01:06.7]} 33... Rb7 {[%clk 0:01:48.1]} 34. Rd2 {[%clk 0:00:51.6]} 34...
Bf6 {[%clk 0:01:42.1]} 35. Bf2 {[%clk 0:00:51.7]} 35... Kf8 {[%clk 0:01:41.4]}
36. Bc5+ {[%clk 0:00:50.3]} 36... Ke8 {[%clk 0:01:41.7]} 37. Kf2 {[%clk
0:00:47.2]} 37... Rc7 {[%clk 0:01:42.1]} 38. Be3 {[%clk 0:00:44.1]} 1/2-1/2

[Event "Early-Titled-Tuesday-Blitz-March-26-2024"]
[Site "Chess.com"]
[Date "2024.03.26"]
[Round "5"]
[White "DmitriiZakurdaev"]
[Black "GMKrikor"]
[Result "1-0"]
[WhiteElo "2417"]
[BlackElo "2874"]
[TimeControl "180+1"]
[EndTime "8:52:11 PDT"]
[Termination "DmitriiZakurdaev won by resignation"]

1. d4 {[%clk 0:02:58.1]} 1... Nf6 {[%clk 0:02:59]} 2. c4 {[%clk 0:02:58.2]} 2...
g6 {[%clk 0:02:58.1]} 3. Nc3 {[%clk 0:02:58.5]} 3... d5 {[%clk 0:02:58.2]} 4.
cxd5 {[%clk 0:02:58.2]} 4... Nxd5 {[%clk 0:02:59.1]} 5. e4 {[%clk 0:02:58.7]}
5... Nxc3 {[%clk 0:02:58.8]} 6. bxc3 {[%clk 0:02:59.6]} 6... Bg7 {[%clk
0:02:58.5]} 7. Be3 {[%clk 0:03:00.2]} 7... c5 {[%clk 0:02:58]} 8. Qd2 {[%clk
0:02:59.7]} 8... Qa5 {[%clk 0:02:54.1]} 9. Nf3 {[%clk 0:02:58.6]} 9... O-O
{[%clk 0:02:51.3]} 10. Rb1 {[%clk 0:02:58.2]} 10... a6 {[%clk 0:02:36.9]} 11.
Rc1 {[%clk 0:02:46.5]} 11... Bg4 {[%clk 0:02:34.9]} 12. Be2 {[%clk 0:02:34.7]}
12... Nd7 {[%clk 0:02:32.7]} 13. h3 {[%clk 0:02:24.7]} 13... Bxf3 {[%clk
0:02:31.9]} 14. Bxf3 {[%clk 0:02:24.7]} 14... cxd4 {[%clk 0:02:32.3]} 15. cxd4
{[%clk 0:02:24.1]} 15... Qa4 {[%clk 0:01:56.1]} 16. O-O {[%clk 0:02:13.3]} 16...
Rac8 {[%clk 0:01:51.7]} 17. Bg4 {[%clk 0:02:06]} 17... e6 {[%clk 0:01:47.9]} 18.
d5 {[%clk 0:01:55.9]} 18... Ne5 {[%clk 0:01:34.8]} 19. dxe6 {[%clk 0:01:53.6]}
19... Nxg4 {[%clk 0:01:26.5]} 20. exf7+ {[%clk 0:01:53.1]} 20... Kxf7 {[%clk
0:00:57.7]} 21. Qd5+ {[%clk 0:01:46.3]} 21... Ke7 {[%clk 0:00:47.9]} 22. Bc5+
{[%clk 0:01:32.2]} 22... Rxc5 {[%clk 0:00:38.4]} 23. Qxc5+ {[%clk 0:01:31]}
23... Kf7 {[%clk 0:00:39.1]} 24. Qd5+ {[%clk 0:01:27.4]} 24... Kf6 {[%clk
0:00:31.1]} 25. hxg4 {[%clk 0:01:19.2]} 25... Re8 {[%clk 0:00:31.1]} 26. g5+
{[%clk 0:01:18]} 1-0

[Event "Early-Titled-Tuesday-Blitz-March-26-2024"]
[Site "Chess.com"]
[Date "2024.03.26"]
[Round "5"]
[White "ploxoi"]
[Black "xasid81"]
[Result "0-1"]
[WhiteElo "2417"]
[BlackElo "2590"]
[TimeControl "180+1"]
[EndTime "8:52:12 PDT"]
[Termination "xasid81 won by resignation"]

1. d4 {[%clk 0:03:00.9]} 1... d5 {[%clk 0:02:59.2]} 2. c4 {[%clk 0:03:00.7]}
2... c6 {[%clk 0:02:59.4]} 3. Nf3 {[%clk 0:03:00.8]} 3... Nf6 {[%clk 0:02:59.7]}
4. e3 {[%clk 0:03:01.2]} 4... e6 {[%clk 0:03:00]} 5. b3 {[%clk 0:02:59.8]} 5...
Nbd7 {[%clk 0:03:00.5]} 6. Bd3 {[%clk 0:02:58.5]} 6... Bb4+ {[%clk 0:02:58.5]}
7. Nbd2 {[%clk 0:02:58.2]} 7... O-O {[%clk 0:02:56.9]} 8. O-O {[%clk 0:02:58.4]}
8... Qe7 {[%clk 0:02:56.7]} 9. Bb2 {[%clk 0:02:58.4]} 9... Ba3 {[%clk
0:02:55.9]} 10. Qc2 {[%clk 0:02:58]} 10... Bxb2 {[%clk 0:02:56]} 11. Qxb2 {[%clk
0:02:58.9]} 11... Re8 {[%clk 0:02:55.1]} 12. Rad1 {[%clk 0:02:55.3]} 12... e5
{[%clk 0:02:53.2]} 13. Bf5 {[%clk 0:02:15]} 13... e4 {[%clk 0:02:51.2]} 14. Ne1
{[%clk 0:01:41.2]} 14... Nf8 {[%clk 0:02:48]} 15. Bxc8 {[%clk 0:01:40.3]} 15...
Raxc8 {[%clk 0:02:48.9]} 16. cxd5 {[%clk 0:01:38.3]} 16... cxd5 {[%clk
0:02:48.4]} 17. Nc2 {[%clk 0:01:38.8]} 17... Ng6 {[%clk 0:02:40.9]} 18. Rc1
{[%clk 0:01:35.7]} 18... h5 {[%clk 0:02:26]} 19. Qa3 {[%clk 0:01:34]} 19... a6
{[%clk 0:02:10.1]} 20. Qxe7 {[%clk 0:01:32.4]} 20... Rxe7 {[%clk 0:02:10.1]} 21.
Nb4 {[%clk 0:01:24.6]} 21... Rec7 {[%clk 0:02:09.1]} 22. Rc4 {[%clk 0:00:17.3]}
22... dxc4 {[%clk 0:02:06.3]} 23. Nxc4 {[%clk 0:00:16.8]} 23... Rd8 {[%clk
0:01:42.8]} 24. d5 {[%clk 0:00:11.2]} 24... Nxd5 {[%clk 0:01:38.6]} 25. Rd1
{[%clk 0:00:11.2]} 25... Rcd7 {[%clk 0:01:37.6]} 0-1

[Event "Early-Titled-Tuesday-Blitz-March-26-2024"]
[Site "Chess.com"]
[Date "2024.03.26"]
[Round "5"]
[White "ContrVersia"]
[Black "GaiozNigalidze"]
[Result "1-0"]
[WhiteElo "2922"]
[BlackElo "2726"]
[TimeControl "180+1"]
[EndTime "8:52:22 PDT"]
[Termination "ContrVersia won by resignation"]

1. Nf3 {[%clk 0:03:00.9]} 1... Nf6 {[%clk 0:02:59.8]} 2. c4 {[%clk 0:03:01]}
2... g6 {[%clk 0:02:59.9]} 3. g3 {[%clk 0:03:01.5]} 3... Bg7 {[%clk 0:03:00.3]}
4. Bg2 {[%clk 0:03:02]} 4... O-O {[%clk 0:03:00.9]} 5. O-O {[%clk 0:03:02.5]}
5... d6 {[%clk 0:03:01.2]} 6. d4 {[%clk 0:03:02.9]} 6... a6 {[%clk 0:03:00.3]}
7. Nc3 {[%clk 0:03:02.7]} 7... Nc6 {[%clk 0:03:00.5]} 8. d5 {[%clk 0:03:02.9]}
8... Na5 {[%clk 0:02:59.8]} 9. b3 {[%clk 0:03:03.3]} 9... c5 {[%clk 0:03:00]}
10. dxc6 {[%clk 0:03:03.7]} 10... Nxc6 {[%clk 0:02:58.1]} 11. Bb2 {[%clk
0:03:04.1]} 11... Bf5 {[%clk 0:02:56.6]} 12. Qc1 {[%clk 0:03:04.1]} 12... Ne4
{[%clk 0:02:51.2]} 13. Nd5 {[%clk 0:03:03.4]} 13... Bxb2 {[%clk 0:02:46.4]} 14.
Qxb2 {[%clk 0:03:04.3]} 14... Nc5 {[%clk 0:02:33.9]} 15. Rfd1 {[%clk 0:03:00.6]}
15... Be6 {[%clk 0:02:28.7]} 16. Rac1 {[%clk 0:02:54.4]} 16... a5 {[%clk
0:02:17.1]} 17. Nc3 {[%clk 0:02:51.9]} 17... Bg4 {[%clk 0:02:07.6]} 18. h4
{[%clk 0:02:50.5]} 18... Bxf3 {[%clk 0:02:04]} 19. Bxf3 {[%clk 0:02:50.7]} 19...
Ne5 {[%clk 0:02:04.6]} 20. Bg2 {[%clk 0:02:51]} 20... Rc8 {[%clk 0:01:59.6]} 21.
Nd5 {[%clk 0:02:36.9]} 21... Ned7 {[%clk 0:01:48.8]} 22. h5 {[%clk 0:02:32.8]}
22... Nf6 {[%clk 0:01:20.4]} 23. Nxf6+ {[%clk 0:02:27.6]} 23... exf6 {[%clk
0:01:20.2]} 24. Rd2 {[%clk 0:02:27.9]} 24... Qe7 {[%clk 0:01:07.5]} 25. Rcd1
{[%clk 0:02:27.3]} 25... Rcd8 {[%clk 0:01:08.2]} 26. Rd5 {[%clk 0:02:24.9]}
26... Rfe8 {[%clk 0:00:55.3]} 27. e3 {[%clk 0:02:24.9]} 27... Rd7 {[%clk
0:00:53]} 28. Bf3 {[%clk 0:02:23.7]} 28... Red8 {[%clk 0:00:42.7]} 29. Kg2
{[%clk 0:02:23.2]} 29... Kg7 {[%clk 0:00:33.1]} 30. Rh1 {[%clk 0:02:22.2]} 30...
b6 {[%clk 0:00:17.4]} 31. Qd4 {[%clk 0:02:20.1]} 31... h6 {[%clk 0:00:05.6]} 32.
hxg6 {[%clk 0:02:18.9]} 32... fxg6 {[%clk 0:00:06.5]} 33. Bg4 {[%clk 0:02:09.9]}
33... Rc7 {[%clk 0:00:05.6]} 34. f3 {[%clk 0:02:06.9]} 34... Ne6 {[%clk
0:00:04.8]} 35. Bxe6 {[%clk 0:02:01.9]} 35... Qxe6 {[%clk 0:00:05.7]} 36. Qxb6
{[%clk 0:02:02.6]} 36... Re7 {[%clk 0:00:05.8]} 37. Qxd8 {[%clk 0:02:01.9]}
37... Qxe3 {[%clk 0:00:06.1]} 38. Rf1 {[%clk 0:02:01.4]} 38... Qg1+ {[%clk
0:00:04.9]} 39. Kxg1 {[%clk 0:02:01]} 1-0

[Event "Early-Titled-Tuesday-Blitz-March-26-2024"]
[Site "Chess.com"]
[Date "2024.03.26"]
[Round "5"]
[White "HanSchut"]
[Black "KanalSzachowy"]
[Result "1-0"]
[WhiteElo "2274"]
[BlackElo "2427"]
[TimeControl "180+1"]
[EndTime "8:52:25 PDT"]
[Termination "HanSchut won by resignation"]

1. e4 {[%clk 0:02:52.6]} 1... Nc6 {[%clk 0:02:59.6]} 2. Nf3 {[%clk 0:02:51.7]}
2... d6 {[%clk 0:02:59.5]} 3. d4 {[%clk 0:02:44.8]} 3... Nf6 {[%clk 0:02:58.8]}
4. Nc3 {[%clk 0:02:40.4]} 4... g6 {[%clk 0:02:59]} 5. h3 {[%clk 0:02:32.9]} 5...
Bg7 {[%clk 0:02:58.7]} 6. Be3 {[%clk 0:02:33.6]} 6... O-O {[%clk 0:02:57.3]} 7.
Qd2 {[%clk 0:02:34.1]} 7... Ng4 {[%clk 0:02:45.9]} 8. hxg4 {[%clk 0:02:31.2]}
8... Bxg4 {[%clk 0:02:46.8]} 9. Be2 {[%clk 0:02:27.6]} 9... e5 {[%clk 0:02:24]}
10. d5 {[%clk 0:02:20.2]} 10... Bxf3 {[%clk 0:02:20.3]} 11. Bxf3 {[%clk
0:02:03.9]} 11... Nd4 {[%clk 0:02:20.1]} 12. O-O-O {[%clk 0:01:56.6]} 12... c5
{[%clk 0:02:17.1]} 13. Bh6 {[%clk 0:01:54.4]} 13... Bf6 {[%clk 0:02:12.3]} 14.
Bxf8 {[%clk 0:01:51.8]} 14... Bg5 {[%clk 0:02:12.1]} 15. Bh6 {[%clk 0:01:44.4]}
15... Bxd2+ {[%clk 0:02:10.7]} 16. Kxd2 {[%clk 0:01:31.3]} 16... b5 {[%clk
0:02:11.2]} 17. a3 {[%clk 0:01:15.2]} 17... b4 {[%clk 0:02:00.8]} 18. axb4
{[%clk 0:01:14.9]} 18... cxb4 {[%clk 0:02:01.7]} 19. Ne2 {[%clk 0:01:12.8]}
19... Nxf3+ {[%clk 0:01:55.6]} 20. gxf3 {[%clk 0:01:12.7]} 20... a5 {[%clk
0:01:56]} 21. f4 {[%clk 0:00:54.2]} 21... a4 {[%clk 0:01:54]} 22. fxe5 {[%clk
0:00:54.3]} 22... dxe5 {[%clk 0:01:54.9]} 23. Ra1 {[%clk 0:00:50.4]} 23... a3
{[%clk 0:01:50.5]} 24. bxa3 {[%clk 0:00:50.6]} 24... bxa3 {[%clk 0:01:51.4]} 25.
Ra2 {[%clk 0:00:40.8]} 25... Qa5+ {[%clk 0:01:51.2]} 26. c3 {[%clk 0:00:41]}
26... Qb5 {[%clk 0:01:42.8]} 27. Rha1 {[%clk 0:00:39.7]} 27... f5 {[%clk
0:01:38.4]} 28. f3 {[%clk 0:00:34.8]} 28... f4 {[%clk 0:01:36.6]} 29. Ke1 {[%clk
0:00:27.2]} 29... Qd3 {[%clk 0:01:29.4]} 30. Kf2 {[%clk 0:00:22.3]} 30... Qe3+
{[%clk 0:01:28.7]} 31. Kg2 {[%clk 0:00:22.8]} 31... Qxe2+ {[%clk 0:01:28.9]} 32.
Rxe2 {[%clk 0:00:20.2]} 1-0

[Event "Early-Titled-Tuesday-Blitz-March-26-2024"]
[Site "Chess.com"]
[Date "2024.03.26"]
[Round "5"]
[White "venturov"]
[Black "kingofthenil"]
[Result "0-1"]
[WhiteElo "2526"]
[BlackElo "2774"]
[TimeControl "180+1"]
[EndTime "8:52:26 PDT"]
[Termination "kingofthenil won by checkmate"]

1. e4 {[%clk 0:02:48.9]} 1... Nc6 {[%clk 0:02:59.6]} 2. d4 {[%clk 0:02:48.6]}
2... d5 {[%clk 0:03:00.5]} 3. e5 {[%clk 0:02:48.1]} 3... Bf5 {[%clk 0:03:00.4]}
4. Nf3 {[%clk 0:02:43.8]} 4... e6 {[%clk 0:03:00.6]} 5. Be2 {[%clk 0:02:41.7]}
5... f6 {[%clk 0:03:00.2]} 6. O-O {[%clk 0:02:28.1]} 6... fxe5 {[%clk
0:02:59.6]} 7. dxe5 {[%clk 0:02:29]} 7... Bc5 {[%clk 0:02:56.8]} 8. a3 {[%clk
0:02:20.2]} 8... Nge7 {[%clk 0:02:48.9]} 9. b4 {[%clk 0:01:42.5]} 9... Bb6
{[%clk 0:02:48]} 10. b5 {[%clk 0:01:36.6]} 10... Na5 {[%clk 0:02:47.4]} 11. Bd2
{[%clk 0:01:31.2]} 11... O-O {[%clk 0:02:43.9]} 12. Bb4 {[%clk 0:01:14.3]} 12...
c5 {[%clk 0:02:30.9]} 13. bxc6 {[%clk 0:01:06.2]} 13... Naxc6 {[%clk 0:02:30.4]}
14. Bd6 {[%clk 0:01:04.3]} 14... Bc7 {[%clk 0:02:22.2]} 15. Bxc7 {[%clk
0:00:43.5]} 15... Qxc7 {[%clk 0:02:23.1]} 16. Nc3 {[%clk 0:00:37.8]} 16... Nxe5
{[%clk 0:02:21.2]} 17. Nb5 {[%clk 0:00:37.4]} 17... Nxf3+ {[%clk 0:02:00.8]} 18.
Bxf3 {[%clk 0:00:38.3]} 18... Qb6 {[%clk 0:02:01.4]} 19. Nd4 {[%clk 0:00:26.8]}
19... Nc6 {[%clk 0:02:01.7]} 20. Nxf5 {[%clk 0:00:18.9]} 20... Rxf5 {[%clk
0:02:02.6]} 21. Rb1 {[%clk 0:00:17.2]} 21... Qc7 {[%clk 0:01:52.6]} 22. Re1
{[%clk 0:00:17.2]} 22... Rf6 {[%clk 0:01:52]} 23. c4 {[%clk 0:00:15.1]} 23...
dxc4 {[%clk 0:01:47]} 24. Qa4 {[%clk 0:00:15.3]} 24... Ne5 {[%clk 0:01:44.5]}
25. Bxb7 {[%clk 0:00:13.7]} 25... Raf8 {[%clk 0:01:44.8]} 26. f3 {[%clk
0:00:13.1]} 26... Nd3 {[%clk 0:01:44.1]} 27. Red1 {[%clk 0:00:09.3]} 27... Qc5+
{[%clk 0:01:43]} 28. Kh1 {[%clk 0:00:02.7]} 28... Nf2+ {[%clk 0:01:42.4]} 29.
Kg1 {[%clk 0:00:03.4]} 29... Nxd1+ {[%clk 0:01:41.1]} 30. Kh1 {[%clk 0:00:02.7]}
30... Nf2+ {[%clk 0:01:41.6]} 31. Kg1 {[%clk 0:00:03.4]} 31... Nh3+ {[%clk
0:01:40.5]} 32. Kh1 {[%clk 0:00:03.2]} 32... Qg1+ {[%clk 0:01:40.1]} 33. Rxg1
{[%clk 0:00:03.9]} 33... Nf2# {[%clk 0:01:41]} 0-1